[Event "Titled Tuesday Blitz July 18 Early 2023"]
[White "Girya, Olga"]
[Black "Rian, Kapriaga"]
[WhiteFideId "4195752"]
[BlackFideId "7103263"]
[WhiteElo "2512"]
[BlackElo "2400"]
[Result "1-0"]
[Round "10"]
[TimeControl "180+2"]
[Date "2023.07.18"]
[WhiteClock "0:00:12"]
[BlackClock "0:00:00"]
[Board "97"]

1. d4 {[%clk 0:03:00]}  Nf6 {[%clk 0:02:57]} 2. Nf3 {[%clk 0:03:00]}  d5 {[%clk 0:02:56]} 3. c4 {[%clk 0:03:00]}  e6 {[%clk 0:02:55]} 4. Nc3 {[%clk 0:03:00]}  Be7 {[%clk 0:02:54]} 5. Bf4 {[%clk 0:03:00]}  O-O {[%clk 0:02:52]} 6. e3 {[%clk 0:03:00]}  Nbd7 {[%clk 0:02:52]} 7. a3 {[%clk 0:02:56]}  Ne4 {[%clk 0:02:38]} 8. Bd3 {[%clk 0:02:53]}  f5 {[%clk 0:02:20]} 9. cxd5 {[%clk 0:02:38]}  Nxc3 {[%clk 0:02:19]} 10. bxc3 {[%clk 0:02:37]}  exd5 {[%clk 0:02:19]} 11. Qb3 {[%clk 0:02:33]}  c6 {[%clk 0:02:16]} 12. h4 {[%clk 0:02:31]}  Kh8 {[%clk 0:02:07]} 13. h5 {[%clk 0:02:29]}  h6 {[%clk 0:02:03]} 14. Qc2 {[%clk 0:02:10]}  Qa5 {[%clk 0:01:35]} 15. Kf1 {[%clk 0:01:58]}  Nf6 {[%clk 0:01:22]} 16. Ne5 {[%clk 0:01:53]}  Re8 {[%clk 0:01:21]} 17. Ng6+ {[%clk 0:00:46]}  Kg8 {[%clk 0:01:17]} 18. g3 {[%clk 0:00:33]}  Ne4 {[%clk 0:01:14]} 19. Kg2 {[%clk 0:00:33]}  Bf6 {[%clk 0:01:01]} 20. f3 {[%clk 0:00:28]}  Nxc3 {[%clk 0:00:57]} 21. Rhc1 {[%clk 0:00:20]}  Na4 {[%clk 0:00:37]} 22. Ra2 {[%clk 0:00:20]}  Bd7 {[%clk 0:00:27]} 23. Bxf5 {[%clk 0:00:20]}  Bxf5 {[%clk 0:00:23]} 24. Qxf5 {[%clk 0:00:19]}  Nb6 {[%clk 0:00:22]} 25. g4 {[%clk 0:00:17]}  Nc4 {[%clk 0:00:20]} 26. Rxc4 {[%clk 0:00:17]}  Qe1 {[%clk 0:00:13]} 27. Rcc2 {[%clk 0:00:16]}  Rxe3 {[%clk 0:00:10]} 28. Bxe3 {[%clk 0:00:16]}  Qxe3 {[%clk 0:00:10]} 29. Re2 {[%clk 0:00:16]}  Qxd4 {[%clk 0:00:10]} 30. Qe6+ {[%clk 0:00:16]}  Kh7 {[%clk 0:00:09]} 31. Qe8 {[%clk 0:00:12]}  Rxe8 {[%clk 0:00:00]} 32. Rxe8 {[%clk 0:00:12]} 1-0


[Site "https://www.chess.com"]

[Event "Titled Tuesday Blitz July 18 Early 2023"]
[White "Mejia, Cherry Ann"]
[Black "Turzo, Attila"]
[WhiteFideId "5206880"]
[BlackFideId "704954"]
[WhiteElo "2378"]
[BlackElo "2509"]
[Result "0-1"]
[Round "10"]
[TimeControl "180+2"]
[Date "2023.07.18"]
[WhiteClock "0:00:04"]
[BlackClock "0:00:58"]
[Board "98"]

1. e4 {[%clk 0:03:00]}  d6 {[%clk 0:03:00]} 2. Nc3 {[%clk 0:03:00]}  Nf6 {[%clk 0:03:00]} 3. d4 {[%clk 0:03:00]}  g6 {[%clk 0:03:00]} 4. Nf3 {[%clk 0:02:53]}  Bg7 {[%clk 0:02:58]} 5. h3 {[%clk 0:02:50]}  a6 {[%clk 0:02:54]} 6. Be3 {[%clk 0:02:48]}  b5 {[%clk 0:02:52]} 7. Qd2 {[%clk 0:02:46]}  b4 {[%clk 0:02:52]} 8. Na4 {[%clk 0:02:43]}  Nxe4 {[%clk 0:02:51]} 9. Qxb4 {[%clk 0:02:43]}  O-O {[%clk 0:02:49]} 10. Bd3 {[%clk 0:02:43]}  Nf6 {[%clk 0:02:40]} 11. O-O {[%clk 0:02:31]}  Nd5 {[%clk 0:02:35]} 12. Qd2 {[%clk 0:02:30]}  Nxe3 {[%clk 0:02:35]} 13. Qxe3 {[%clk 0:02:22]}  Bb7 {[%clk 0:02:35]} 14. Be4 {[%clk 0:02:18]}  c6 {[%clk 0:02:30]} 15. c4 {[%clk 0:01:46]}  Nd7 {[%clk 0:02:29]} 16. Rac1 {[%clk 0:01:42]}  Rb8 {[%clk 0:02:16]} 17. b4 {[%clk 0:01:36]}  Re8 {[%clk 0:02:07]} 18. Rfd1 {[%clk 0:01:35]}  Qc7 {[%clk 0:02:05]} 19. a3 {[%clk 0:01:34]}  e5 {[%clk 0:01:58]} 20. dxe5 {[%clk 0:01:32]}  Nxe5 {[%clk 0:01:54]} 21. Nxe5 {[%clk 0:01:32]}  Rxe5 {[%clk 0:01:54]} 22. Qd3 {[%clk 0:01:22]}  Re6 {[%clk 0:01:51]} 23. Bf3 {[%clk 0:01:19]}  Rbe8 {[%clk 0:01:50]} 24. c5 {[%clk 0:01:12]}  d5 {[%clk 0:01:47]} 25. Nc3 {[%clk 0:01:07]}  Qf4 {[%clk 0:01:31]} 26. Ne2 {[%clk 0:01:03]}  Qh4 {[%clk 0:01:29]} 27. Nd4 {[%clk 0:00:51]}  Bxd4 {[%clk 0:01:18]} 28. Qxd4 {[%clk 0:00:52]}  Re1+ {[%clk 0:01:18]} 29. Rxe1 {[%clk 0:00:20]}  Rxe1+ {[%clk 0:01:17]} 30. Rxe1 {[%clk 0:00:20]}  Qxd4 {[%clk 0:01:17]} 31. Re8+ {[%clk 0:00:20]}  Kg7 {[%clk 0:01:16]} 32. g3 {[%clk 0:00:19]}  Qa1+ {[%clk 0:01:09]} 33. Kg2 {[%clk 0:00:19]}  Qxa3 {[%clk 0:01:09]} 34. Rb8 {[%clk 0:00:17]}  Qxb4 {[%clk 0:01:09]} 35. Bg4 {[%clk 0:00:12]}  f5 {[%clk 0:01:05]} 36. Be2 {[%clk 0:00:10]}  a5 {[%clk 0:01:00]} 37. Kh2 {[%clk 0:00:07]}  Kf6 {[%clk 0:00:58]} 38. Ba6 {[%clk 0:00:04]}  Bxa6 {[%clk 0:00:58]} 0-1


[Site "https://www.chess.com"]

[Event "Titled Tuesday Blitz July 18 Early 2023"]
[White "Omariev, Maksim"]
[Black "Borrmann, Laurenz"]
[WhiteFideId "4193423"]
[BlackFideId "312187930"]
[WhiteElo "2376"]
[BlackElo "2500"]
[Result "1-0"]
[Round "10"]
[TimeControl "180+2"]
[Date "2023.07.18"]
[WhiteClock "0:00:29"]
[BlackClock "0:00:00"]
[Board "99"]

1. g4 {[%clk 0:02:59]}  d5 {[%clk 0:02:49]} 2. Bg2 {[%clk 0:02:59]}  h5 {[%clk 0:02:41]} 3. gxh5 {[%clk 0:02:55]}  e5 {[%clk 0:02:40]} 4. d4 {[%clk 0:02:52]}  e4 {[%clk 0:02:33]} 5. c4 {[%clk 0:02:50]}  c6 {[%clk 0:02:32]} 6. Nc3 {[%clk 0:02:50]}  Nf6 {[%clk 0:02:30]} 7. Bg5 {[%clk 0:02:38]}  Bb4 {[%clk 0:02:05]} 8. e3 {[%clk 0:02:34]}  Be6 {[%clk 0:01:53]} 9. Ne2 {[%clk 0:02:04]}  Rxh5 {[%clk 0:01:38]} 10. h4 {[%clk 0:02:03]}  dxc4 {[%clk 0:01:23]} 11. Ng3 {[%clk 0:02:00]}  Rh8 {[%clk 0:00:50]} 12. Nxe4 {[%clk 0:02:00]}  Nbd7 {[%clk 0:00:50]} 13. Qc2 {[%clk 0:01:42]}  Qa5 {[%clk 0:00:27]} 14. O-O-O {[%clk 0:01:38]}  Nd5 {[%clk 0:00:12]} 15. Kb1 {[%clk 0:01:33]}  Bf5 {[%clk 0:00:07]} 16. Nxd5 {[%clk 0:01:16]}  Qxd5 {[%clk 0:00:05]} 17. Ka1 {[%clk 0:00:54]}  Qb5 {[%clk 0:00:02]} 18. Rc1 {[%clk 0:00:49]}  Nb6 {[%clk 0:00:00]} 19. Nf6+ {[%clk 0:00:29]} 1-0


[Site "https://www.chess.com"]

[Event "Titled Tuesday Blitz July 18 Early 2023"]
[White "vishwa_vijeta"]
[Black "K2JW"]
[WhiteElo "2477"]
[BlackElo "2366"]
[Result "1-0"]
[Round "10"]
[TimeControl "180+2"]
[Date "2023.07.18"]
[WhiteClock "0:01:30"]
[BlackClock "0:00:07"]
[Board "100"]

1. e4 {[%clk 0:03:00]}  c6 {[%clk 0:02:59]} 2. d4 {[%clk 0:02:59]}  d5 {[%clk 0:03:00]} 3. Bd3 {[%clk 0:03:00]}  dxe4 {[%clk 0:02:59]} 4. Bxe4 {[%clk 0:03:01]}  Nf6 {[%clk 0:02:59]} 5. Bf3 {[%clk 0:03:01]}  Bf5 {[%clk 0:02:55]} 6. Bf4 {[%clk 0:02:59]}  e6 {[%clk 0:02:54]} 7. Ne2 {[%clk 0:02:59]}  Bd6 {[%clk 0:02:42]} 8. Bxd6 {[%clk 0:02:58]}  Qxd6 {[%clk 0:02:43]} 9. c3 {[%clk 0:02:58]}  Nbd7 {[%clk 0:02:24]} 10. Nd2 {[%clk 0:02:58]}  O-O {[%clk 0:02:14]} 11. O-O {[%clk 0:02:56]}  e5 {[%clk 0:02:10]} 12. Nc4 {[%clk 0:02:56]}  Qc7 {[%clk 0:02:10]} 13. Ng3 {[%clk 0:02:54]}  Be6 {[%clk 0:02:06]} 14. Nxe5 {[%clk 0:02:49]}  Nxe5 {[%clk 0:02:06]} 15. dxe5 {[%clk 0:02:50]}  Qxe5 {[%clk 0:02:07]} 16. Re1 {[%clk 0:02:50]}  Qc7 {[%clk 0:02:01]} 17. Qc2 {[%clk 0:02:48]}  Bd5 {[%clk 0:01:58]} 18. Bxd5 {[%clk 0:02:46]}  Nxd5 {[%clk 0:01:59]} 19. h3 {[%clk 0:02:47]}  Rfe8 {[%clk 0:01:56]} 20. Qd2 {[%clk 0:02:45]}  Qf4 {[%clk 0:01:51]} 21. Qxf4 {[%clk 0:02:44]}  Nxf4 {[%clk 0:01:52]} 22. Rxe8+ {[%clk 0:02:44]}  Rxe8 {[%clk 0:01:51]} 23. Rd1 {[%clk 0:02:45]}  Nd5 {[%clk 0:01:45]} 24. c4 {[%clk 0:02:42]}  Nf6 {[%clk 0:01:43]} 25. b3 {[%clk 0:02:40]}  g6 {[%clk 0:01:42]} 26. Kf1 {[%clk 0:02:40]}  Kg7 {[%clk 0:01:41]} 27. Rd6 {[%clk 0:02:39]}  Re7 {[%clk 0:01:38]} 28. Rd8 {[%clk 0:02:38]}  Rd7 {[%clk 0:01:38]} 29. Ra8 {[%clk 0:02:35]}  a6 {[%clk 0:01:29]} 30. Rb8 {[%clk 0:02:33]}  h5 {[%clk 0:01:28]} 31. Ke2 {[%clk 0:02:31]}  h4 {[%clk 0:01:25]} 32. Nf1 {[%clk 0:02:30]}  Ne4 {[%clk 0:01:24]} 33. Kf3 {[%clk 0:02:27]}  f5 {[%clk 0:01:19]} 34. Ne3 {[%clk 0:02:23]}  Rd2 {[%clk 0:01:15]} 35. Rxb7+ {[%clk 0:02:20]}  Kf6 {[%clk 0:01:14]} 36. Ng4+ {[%clk 0:02:02]}  fxg4+ {[%clk 0:01:04]} 37. Kxe4 {[%clk 0:01:59]}  Rxf2 {[%clk 0:01:05]} 38. hxg4 {[%clk 0:01:52]}  Rxg2 {[%clk 0:01:03]} 39. Kf3 {[%clk 0:01:52]}  Rg3+ {[%clk 0:00:43]} 40. Kf2 {[%clk 0:01:48]}  Rxg4 {[%clk 0:00:43]} 41. Rb6 {[%clk 0:01:47]}  h3 {[%clk 0:00:41]} 42. Rxc6+ {[%clk 0:01:46]}  Kg5 {[%clk 0:00:41]} 43. Rc8 {[%clk 0:01:44]}  Rh4 {[%clk 0:00:28]} 44. Kg1 {[%clk 0:01:39]}  h2+ {[%clk 0:00:19]} 45. Kh1 {[%clk 0:01:37]}  Kf4 {[%clk 0:00:15]} 46. Rd8 {[%clk 0:01:34]}  g5 {[%clk 0:00:14]} 47. Rd4+ {[%clk 0:01:34]}  Kg3 {[%clk 0:00:11]} 48. Rxh4 {[%clk 0:01:34]}  Kxh4 {[%clk 0:00:11]} 49. Kxh2 {[%clk 0:01:35]}  Kg4 {[%clk 0:00:11]} 50. Kg2 {[%clk 0:01:35]}  Kf4 {[%clk 0:00:11]} 51. b4 {[%clk 0:01:34]}  Ke4 {[%clk 0:00:07]} 52. c5 {[%clk 0:01:33]}  Kd5 {[%clk 0:00:04]} 53. Kg3 {[%clk 0:01:32]}  Kc6 {[%clk 0:00:04]} 54. a3 {[%clk 0:01:30]}  Kb5 {[%clk 0:00:05]} 55. Kg4 {[%clk 0:01:30]}  a5 {[%clk 0:00:05]} 56. Kxg5 {[%clk 0:01:30]}  axb4 {[%clk 0:00:06]} 57. axb4 {[%clk 0:01:31]}  Kc6 {[%clk 0:00:06]} 58. Kf5 {[%clk 0:01:30]}  Kb5 {[%clk 0:00:07]} 1-0


[Site "https://www.chess.com"]

[Event "Titled Tuesday Blitz July 18 Early 2023"]
[White "Sathish, Pranav"]
[Black "Llanos, Guillermo"]
[WhiteFideId "30967538"]
[BlackFideId "100358"]
[WhiteElo "2468"]
[BlackElo "2356"]
[Result "1-0"]
[Round "10"]
[TimeControl "180+2"]
[Date "2023.07.18"]
[WhiteClock "0:00:09"]
[BlackClock "0:00:00"]
[Board "102"]

1. Nf3 {[%clk 0:03:00]}  Nf6 {[%clk 0:03:00]} 2. b3 {[%clk 0:03:00]}  g6 {[%clk 0:03:00]} 3. Bb2 {[%clk 0:02:59]}  Bg7 {[%clk 0:03:00]} 4. g3 {[%clk 0:02:59]}  b6 {[%clk 0:03:01]} 5. Bg2 {[%clk 0:02:59]}  Bb7 {[%clk 0:03:01]} 6. O-O {[%clk 0:02:59]}  O-O {[%clk 0:03:01]} 7. c4 {[%clk 0:02:59]}  c5 {[%clk 0:03:01]} 8. d4 {[%clk 0:02:59]}  cxd4 {[%clk 0:02:59]} 9. Qxd4 {[%clk 0:02:59]}  Nc6 {[%clk 0:02:58]} 10. Qc3 {[%clk 0:02:58]}  Ne8 {[%clk 0:02:54]} 11. Qd2 {[%clk 0:02:56]}  Bxb2 {[%clk 0:02:53]} 12. Qxb2 {[%clk 0:02:56]}  Nf6 {[%clk 0:02:35]} 13. Nc3 {[%clk 0:02:55]}  d6 {[%clk 0:02:34]} 14. Rfd1 {[%clk 0:02:54]}  Rc8 {[%clk 0:02:31]} 15. Rac1 {[%clk 0:02:53]}  Qd7 {[%clk 0:02:24]} 16. e4 {[%clk 0:02:47]}  Qe8 {[%clk 0:02:06]} 17. Qe2 {[%clk 0:02:20]}  Nd7 {[%clk 0:02:04]} 18. Nd5 {[%clk 0:02:19]}  Nce5 {[%clk 0:01:55]} 19. Nd4 {[%clk 0:02:15]}  e6 {[%clk 0:01:52]} 20. Nc3 {[%clk 0:02:13]}  a6 {[%clk 0:01:52]} 21. f4 {[%clk 0:02:12]}  Nc6 {[%clk 0:01:51]} 22. Nxc6 {[%clk 0:02:12]}  Bxc6 {[%clk 0:01:46]} 23. Rxd6 {[%clk 0:02:10]}  e5 {[%clk 0:01:37]} 24. f5 {[%clk 0:01:53]}  Qe7 {[%clk 0:01:31]} 25. Rcd1 {[%clk 0:01:51]}  Nf6 {[%clk 0:01:21]} 26. Qe3 {[%clk 0:01:32]}  b5 {[%clk 0:01:19]} 27. Qg5 {[%clk 0:01:29]}  Kg7 {[%clk 0:01:18]} 28. c5 {[%clk 0:01:14]}  h6 {[%clk 0:01:16]} 29. Qe3 {[%clk 0:01:10]}  b4 {[%clk 0:01:11]} 30. Nd5 {[%clk 0:01:07]}  Bxd5 {[%clk 0:01:11]} 31. exd5 {[%clk 0:01:07]}  gxf5 {[%clk 0:01:10]} 32. Rf1 {[%clk 0:01:05]}  Ng4 {[%clk 0:01:05]} 33. Qd3 {[%clk 0:00:53]}  Rxc5 {[%clk 0:01:03]} 34. Rxa6 {[%clk 0:00:52]}  Rc3 {[%clk 0:00:52]} 35. Qxf5 {[%clk 0:00:38]}  Ne3 {[%clk 0:00:52]} 36. d6 {[%clk 0:00:36]}  Nxf5 {[%clk 0:00:42]} 37. dxe7 {[%clk 0:00:36]}  Nxe7 {[%clk 0:00:42]} 38. Ra7 {[%clk 0:00:37]}  Nc6 {[%clk 0:00:37]} 39. Rb7 {[%clk 0:00:28]}  Rc2 {[%clk 0:00:32]} 40. Be4 {[%clk 0:00:24]}  Rc3 {[%clk 0:00:29]} 41. Bd5 {[%clk 0:00:24]}  Kg6 {[%clk 0:00:22]} 42. Bxf7+ {[%clk 0:00:19]}  Kg5 {[%clk 0:00:21]} 43. h4+ {[%clk 0:00:18]}  Kg4 {[%clk 0:00:21]} 44. Be6+ {[%clk 0:00:17]}  Kxg3 {[%clk 0:00:20]} 45. Rg7+ {[%clk 0:00:17]}  Kxh4 {[%clk 0:00:19]} 46. Rxf8 {[%clk 0:00:18]}  Nd4 {[%clk 0:00:18]} 47. Rg4+ {[%clk 0:00:16]}  Kh5 {[%clk 0:00:16]} 48. Bd7 {[%clk 0:00:15]}  Ne2+ {[%clk 0:00:12]} 49. Kf2 {[%clk 0:00:14]}  Nf4 {[%clk 0:00:12]} 50. Rgg8 {[%clk 0:00:13]}  Rc2+ {[%clk 0:00:10]} 51. Ke1 {[%clk 0:00:13]}  Nd3+ {[%clk 0:00:09]} 52. Kd1 {[%clk 0:00:13]}  Rxa2 {[%clk 0:00:06]} 53. Bg4+ {[%clk 0:00:12]}  Kh4 {[%clk 0:00:06]} 54. Rf3 {[%clk 0:00:12]}  Nf2+ {[%clk 0:00:05]} 55. Rxf2 {[%clk 0:00:12]}  Rxf2 {[%clk 0:00:05]} 56. Be2 {[%clk 0:00:13]}  Rf4 {[%clk 0:00:03]} 57. Rg6 {[%clk 0:00:11]}  h5 {[%clk 0:00:03]} 58. Rh6 {[%clk 0:00:11]}  Rf5 {[%clk 0:00:03]} 59. Kd2 {[%clk 0:00:11]}  Rg5 {[%clk 0:00:00]} 60. Rb6 {[%clk 0:00:09]} 1-0


[Site "https://www.chess.com"]

[Event "Titled Tuesday Blitz July 18 Early 2023"]
[White "micke12a"]
[Black "Ljukin, Sergei"]
[BlackFideId "14102200"]
[WhiteElo "2346"]
[BlackElo "2464"]
[Result "1-0"]
[Round "10"]
[TimeControl "180+2"]
[Date "2023.07.18"]
[WhiteClock "0:00:35"]
[BlackClock "0:00:02"]
[Board "103"]

1. e4 {[%clk 0:02:55]}  e6 {[%clk 0:02:52]} 2. d4 {[%clk 0:02:52]}  d5 {[%clk 0:02:53]} 3. Nc3 {[%clk 0:02:52]}  Bb4 {[%clk 0:02:52]} 4. Ne2 {[%clk 0:02:50]}  Nc6 {[%clk 0:02:52]} 5. exd5 {[%clk 0:02:44]}  exd5 {[%clk 0:02:51]} 6. a3 {[%clk 0:02:44]}  Bd6 {[%clk 0:02:51]} 7. g3 {[%clk 0:02:39]}  Nf6 {[%clk 0:02:49]} 8. Bg2 {[%clk 0:02:40]}  Ne7 {[%clk 0:02:35]} 9. O-O {[%clk 0:02:38]}  c6 {[%clk 0:02:32]} 10. Bg5 {[%clk 0:02:39]}  Ng6 {[%clk 0:02:32]} 11. Re1 {[%clk 0:02:38]}  O-O {[%clk 0:02:31]} 12. h3 {[%clk 0:02:28]}  h6 {[%clk 0:02:30]} 13. Be3 {[%clk 0:02:27]}  Bf5 {[%clk 0:02:29]} 14. Qd2 {[%clk 0:02:26]}  Re8 {[%clk 0:02:26]} 15. g4 {[%clk 0:02:25]}  Ne4 {[%clk 0:02:21]} 16. Nxe4 {[%clk 0:02:22]}  Bxe4 {[%clk 0:02:21]} 17. Ng3 {[%clk 0:02:09]}  Bxg3 {[%clk 0:02:15]} 18. fxg3 {[%clk 0:02:08]}  Bxg2 {[%clk 0:02:15]} 19. Kxg2 {[%clk 0:02:08]}  Re4 {[%clk 0:02:15]} 20. Bf2 {[%clk 0:02:01]}  Qe7 {[%clk 0:02:13]} 21. Qd3 {[%clk 0:01:59]}  Re8 {[%clk 0:02:09]} 22. Rxe4 {[%clk 0:01:58]}  dxe4 {[%clk 0:02:05]} 23. Qe3 {[%clk 0:01:59]}  Qe6 {[%clk 0:02:05]} 24. Re1 {[%clk 0:01:56]}  b5 {[%clk 0:01:52]} 25. b3 {[%clk 0:01:54]}  a5 {[%clk 0:01:47]} 26. Qc3 {[%clk 0:01:53]}  a4 {[%clk 0:01:27]} 27. bxa4 {[%clk 0:01:50]}  bxa4 {[%clk 0:01:28]} 28. Qb4 {[%clk 0:01:45]}  Ne7 {[%clk 0:01:14]} 29. c4 {[%clk 0:01:39]}  f5 {[%clk 0:01:13]} 30. gxf5 {[%clk 0:01:35]}  Nxf5 {[%clk 0:01:13]} 31. g4 {[%clk 0:00:59]}  Nd6 {[%clk 0:00:33]} 32. Qxa4 {[%clk 0:00:57]}  Nxc4 {[%clk 0:00:32]} 33. Rc1 {[%clk 0:00:50]}  e3 {[%clk 0:00:26]} 34. Qxc4 {[%clk 0:00:47]}  exf2 {[%clk 0:00:25]} 35. Qxe6+ {[%clk 0:00:44]}  Rxe6 {[%clk 0:00:25]} 36. Kxf2 {[%clk 0:00:45]}  Re4 {[%clk 0:00:23]} 37. Rxc6 {[%clk 0:00:43]}  Rxd4 {[%clk 0:00:23]} 38. Ke3 {[%clk 0:00:41]}  Ra4 {[%clk 0:00:23]} 39. Rc3 {[%clk 0:00:41]}  Kf7 {[%clk 0:00:21]} 40. Kd3 {[%clk 0:00:42]}  Kf6 {[%clk 0:00:20]} 41. Kc2 {[%clk 0:00:43]}  Kg5 {[%clk 0:00:18]} 42. Kb3 {[%clk 0:00:43]}  Ra7 {[%clk 0:00:18]} 43. a4 {[%clk 0:00:43]}  Rb7+ {[%clk 0:00:18]} 44. Ka3 {[%clk 0:00:43]}  Ra7 {[%clk 0:00:18]} 45. Rc5+ {[%clk 0:00:42]}  Kh4 {[%clk 0:00:16]} 46. Rh5+ {[%clk 0:00:41]}  Kg3 {[%clk 0:00:15]} 47. a5 {[%clk 0:00:41]}  Re7 {[%clk 0:00:09]} 48. Kb4 {[%clk 0:00:35]}  Re1 {[%clk 0:00:09]} 49. a6 {[%clk 0:00:35]}  Rb1+ {[%clk 0:00:08]} 50. Ka5 {[%clk 0:00:35]}  Ra1+ {[%clk 0:00:07]} 51. Kb6 {[%clk 0:00:35]}  Rb1+ {[%clk 0:00:06]} 52. Rb5 {[%clk 0:00:35]}  Re1 {[%clk 0:00:06]} 53. Rb3+ {[%clk 0:00:35]}  Kh4 {[%clk 0:00:02]} 54. a7 {[%clk 0:00:35]} 1-0


[Site "https://www.chess.com"]

[Event "Titled Tuesday Blitz July 18 Early 2023"]
[White "Mikhaylova, Irina"]
[Black "Namitbir Singh Walia"]
[WhiteFideId "4109040"]
[BlackFideId "35071068"]
[WhiteElo "2310"]
[BlackElo "2447"]
[Result "1/2-1/2"]
[Round "10"]
[TimeControl "180+2"]
[Date "2023.07.18"]
[WhiteClock "0:00:17"]
[BlackClock "0:00:05"]
[Board "106"]

1. d4 {[%clk 0:03:00]}  d5 {[%clk 0:03:00]} 2. Nf3 {[%clk 0:03:00]}  Nf6 {[%clk 0:03:00]} 3. c4 {[%clk 0:03:00]}  c6 {[%clk 0:03:00]} 4. cxd5 {[%clk 0:03:01]}  cxd5 {[%clk 0:02:59]} 5. Nc3 {[%clk 0:03:01]}  Nc6 {[%clk 0:03:00]} 6. Bf4 {[%clk 0:03:02]}  a6 {[%clk 0:02:56]} 7. Rc1 {[%clk 0:03:01]}  g6 {[%clk 0:02:55]} 8. e3 {[%clk 0:03:01]}  Bg7 {[%clk 0:02:56]} 9. h3 {[%clk 0:03:02]}  O-O {[%clk 0:02:56]} 10. Bd3 {[%clk 0:03:02]}  Bf5 {[%clk 0:02:52]} 11. O-O {[%clk 0:03:02]}  Bxd3 {[%clk 0:02:39]} 12. Qxd3 {[%clk 0:03:02]}  Rc8 {[%clk 0:02:39]} 13. Ne5 {[%clk 0:03:02]}  e6 {[%clk 0:02:15]} 14. Bg5 {[%clk 0:02:43]}  h6 {[%clk 0:01:50]} 15. Bh4 {[%clk 0:02:07]}  g5 {[%clk 0:01:21]} 16. Bg3 {[%clk 0:02:04]}  Nxe5 {[%clk 0:01:19]} 17. Bxe5 {[%clk 0:02:00]}  Nd7 {[%clk 0:01:19]} 18. Bxg7 {[%clk 0:01:39]}  Kxg7 {[%clk 0:01:19]} 19. e4 {[%clk 0:01:10]}  dxe4 {[%clk 0:01:19]} 20. Nxe4 {[%clk 0:01:09]}  Nf6 {[%clk 0:01:18]} 21. Rxc8 {[%clk 0:00:57]}  Qxc8 {[%clk 0:01:19]} 22. Nxf6 {[%clk 0:00:57]}  Kxf6 {[%clk 0:01:20]} 23. f4 {[%clk 0:00:57]}  Kg7 {[%clk 0:01:19]} 24. fxg5 {[%clk 0:00:49]}  hxg5 {[%clk 0:01:19]} 25. Qg3 {[%clk 0:00:49]}  Qd8 {[%clk 0:01:19]} 26. Qe5+ {[%clk 0:00:47]}  f6 {[%clk 0:01:05]} 27. Qxe6 {[%clk 0:00:47]}  Qxd4+ {[%clk 0:01:05]} 28. Kh1 {[%clk 0:00:46]}  Qxb2 {[%clk 0:01:01]} 29. Rd1 {[%clk 0:00:39]}  Rf7 {[%clk 0:00:59]} 30. Rd6 {[%clk 0:00:26]}  Qc1+ {[%clk 0:00:40]} 31. Kh2 {[%clk 0:00:26]}  Qf4+ {[%clk 0:00:40]} 32. Kh1 {[%clk 0:00:26]}  Qc1+ {[%clk 0:00:24]} 33. Kh2 {[%clk 0:00:26]}  Qc3 {[%clk 0:00:21]} 34. h4 {[%clk 0:00:18]}  Qc1 {[%clk 0:00:15]} 35. h5 {[%clk 0:00:17]}  Qf4+ {[%clk 0:00:15]} 36. g3 {[%clk 0:00:16]}  Qf2+ {[%clk 0:00:14]} 37. Kh3 {[%clk 0:00:16]}  Qf1+ {[%clk 0:00:15]} 38. Kh2 {[%clk 0:00:16]}  Qf2+ {[%clk 0:00:12]} 39. Kh3 {[%clk 0:00:17]}  Qf1+ {[%clk 0:00:08]} 40. Kh2 {[%clk 0:00:17]}  Qf2+ {[%clk 0:00:05]} 1/2-1/2


[Site "https://www.chess.com"]

[Event "Titled Tuesday Blitz July 18 Early 2023"]
[White "Herman, Daniel"]
[Black "Larina, Maria"]
[WhiteFideId "30935008"]
[BlackFideId "24113182"]
[WhiteElo "2428"]
[BlackElo "2222"]
[Result "1/2-1/2"]
[Round "10"]
[TimeControl "180+2"]
[Date "2023.07.18"]
[WhiteClock "0:00:13"]
[BlackClock "0:00:11"]
[Board "109"]

1. d4 {[%clk 0:03:00]}  f5 {[%clk 0:02:59]} 2. g3 {[%clk 0:02:58]}  Nf6 {[%clk 0:03:00]} 3. Bg2 {[%clk 0:02:59]}  d6 {[%clk 0:03:01]} 4. Nh3 {[%clk 0:02:45]}  Nc6 {[%clk 0:02:51]} 5. d5 {[%clk 0:02:43]}  Ne5 {[%clk 0:02:50]} 6. Nf4 {[%clk 0:02:44]}  g5 {[%clk 0:02:45]} 7. Ne6 {[%clk 0:02:39]}  Bxe6 {[%clk 0:02:45]} 8. dxe6 {[%clk 0:02:40]}  c6 {[%clk 0:02:39]} 9. Bxg5 {[%clk 0:02:39]}  Qc8 {[%clk 0:02:30]} 10. Bxf6 {[%clk 0:02:19]}  exf6 {[%clk 0:02:31]} 11. O-O {[%clk 0:02:12]}  Qxe6 {[%clk 0:02:31]} 12. Nd2 {[%clk 0:02:12]}  d5 {[%clk 0:02:25]} 13. Nf3 {[%clk 0:02:09]}  Nxf3+ {[%clk 0:02:18]} 14. Bxf3 {[%clk 0:02:10]}  O-O-O {[%clk 0:02:17]} 15. e3 {[%clk 0:02:01]}  Bc5 {[%clk 0:02:14]} 16. c3 {[%clk 0:01:59]}  f4 {[%clk 0:02:10]} 17. gxf4 {[%clk 0:01:56]}  Rdg8+ {[%clk 0:02:08]} 18. Kh1 {[%clk 0:01:55]}  h5 {[%clk 0:02:02]} 19. Qe2 {[%clk 0:01:43]}  Kc7 {[%clk 0:01:52]} 20. Rg1 {[%clk 0:01:43]}  h4 {[%clk 0:01:35]} 21. Rxg8 {[%clk 0:01:38]}  Rxg8 {[%clk 0:01:36]} 22. Rg1 {[%clk 0:01:38]}  Rxg1+ {[%clk 0:01:30]} 23. Kxg1 {[%clk 0:01:38]}  Qg8+ {[%clk 0:01:29]} 24. Kh1 {[%clk 0:01:31]}  Qh7 {[%clk 0:01:24]} 25. b4 {[%clk 0:01:07]}  Bd6 {[%clk 0:01:15]} 26. h3 {[%clk 0:01:00]}  Qb1+ {[%clk 0:01:14]} 27. Kh2 {[%clk 0:01:00]}  Qf5 {[%clk 0:01:10]} 28. Bg4 {[%clk 0:00:54]}  Qb1 {[%clk 0:01:04]} 29. a4 {[%clk 0:00:51]}  f5 {[%clk 0:00:55]} 30. Bf3 {[%clk 0:00:48]}  Qa1 {[%clk 0:00:52]} 31. c4 {[%clk 0:00:44]}  d4 {[%clk 0:00:36]} 32. c5 {[%clk 0:00:38]}  Bf8 {[%clk 0:00:29]} 33. Qc4 {[%clk 0:00:26]}  Be7 {[%clk 0:00:08]} 34. Qe6 {[%clk 0:00:22]}  Kd8 {[%clk 0:00:06]} 35. Qxf5 {[%clk 0:00:16]}  dxe3 {[%clk 0:00:06]} 36. fxe3 {[%clk 0:00:16]}  Qb2+ {[%clk 0:00:06]} 37. Bg2 {[%clk 0:00:17]}  Qxb4 {[%clk 0:00:05]} 38. e4 {[%clk 0:00:15]}  Qxc5 {[%clk 0:00:05]} 39. Qxc5 {[%clk 0:00:15]}  Bxc5 {[%clk 0:00:06]} 40. e5 {[%clk 0:00:15]}  Ke7 {[%clk 0:00:06]} 41. Be4 {[%clk 0:00:14]}  Be3 {[%clk 0:00:06]} 42. Kg2 {[%clk 0:00:11]}  Bxf4 {[%clk 0:00:07]} 43. Kf3 {[%clk 0:00:10]}  Bxe5 {[%clk 0:00:07]} 44. Kg4 {[%clk 0:00:10]}  Bg3 {[%clk 0:00:08]} 45. Kf5 {[%clk 0:00:10]}  Kd6 {[%clk 0:00:08]} 46. Bf3 {[%clk 0:00:10]}  b6 {[%clk 0:00:08]} 47. Ke4 {[%clk 0:00:09]}  Kc5 {[%clk 0:00:07]} 48. Kd3 {[%clk 0:00:09]}  a5 {[%clk 0:00:08]} 49. Kc3 {[%clk 0:00:10]}  b5 {[%clk 0:00:08]} 50. Kb3 {[%clk 0:00:09]}  b4 {[%clk 0:00:08]} 51. Be4 {[%clk 0:00:09]}  Bf2 {[%clk 0:00:07]} 52. Bf3 {[%clk 0:00:09]}  Bd4 {[%clk 0:00:07]} 53. Be4 {[%clk 0:00:09]}  Bc3 {[%clk 0:00:07]} 54. Bf3 {[%clk 0:00:10]}  Kd4 {[%clk 0:00:08]} 55. Bxc6 {[%clk 0:00:10]}  Kd3 {[%clk 0:00:07]} 56. Bd7 {[%clk 0:00:10]}  Kd2 {[%clk 0:00:07]} 57. Bg4 {[%clk 0:00:11]}  Kd3 {[%clk 0:00:07]} 58. Be6 {[%clk 0:00:11]}  Kd4 {[%clk 0:00:07]} 59. Bg4 {[%clk 0:00:11]}  Kc5 {[%clk 0:00:08]} 60. Be6 {[%clk 0:00:12]}  Be5 {[%clk 0:00:08]} 61. Bg4 {[%clk 0:00:12]}  Bc3 {[%clk 0:00:09]} 62. Be6 {[%clk 0:00:12]}  Be5 {[%clk 0:00:10]} 63. Bg4 {[%clk 0:00:13]}  Bc3 {[%clk 0:00:11]} 1/2-1/2


[Site "https://www.chess.com"]